[Event "Titled Tuesday Blitz July 20 2021"]
[White "Rahman, Ziaur"]
[Black "Stojanovski, Sandi"]
[WhiteFideId "10200037"]
[BlackFideId "1403249"]
[WhiteElo "2460"]
[BlackElo "2369"]
[Result "1-0"]
[Round "02"]
[TimeControl "180+1"]
[Date "2021.07.21"]
[WhiteClock "0:00:12"]
[BlackClock "0:00:04"]

1. d4 {[%clk 0:03:00]}  d5 {[%clk 0:02:59]} 2. Bf4 {[%clk 0:03:00]}  Bf5 {[%clk 0:02:58]} 3. c4 {[%clk 0:02:53]}  e6 {[%clk 0:02:57]} 4. Nc3 {[%clk 0:02:52]}  Bb4 {[%clk 0:02:56]} 5. e3 {[%clk 0:02:46]}  Nf6 {[%clk 0:02:49]} 6. Nf3 {[%clk 0:02:37]}  O-O {[%clk 0:02:37]} 7. Bg5 {[%clk 0:02:30]}  c5 {[%clk 0:02:32]} 8. cxd5 {[%clk 0:02:26]}  Qa5 {[%clk 0:02:22]} 9. Bxf6 {[%clk 0:02:22]}  Bxc3+ {[%clk 0:01:54]} 10. bxc3 {[%clk 0:02:22]}  Qxc3+ {[%clk 0:01:55]} 11. Nd2 {[%clk 0:02:22]}  gxf6 {[%clk 0:01:52]} 12. Rc1 {[%clk 0:02:21]}  Qb4 {[%clk 0:01:50]} 13. Rc4 {[%clk 0:02:13]}  Qb2 {[%clk 0:01:35]} 14. dxe6 {[%clk 0:02:02]}  cxd4 {[%clk 0:01:18]} 15. exf7+ {[%clk 0:01:59]}  Rxf7 {[%clk 0:01:15]} 16. e4 {[%clk 0:01:28]}  Be6 {[%clk 0:01:03]} 17. Rc2 {[%clk 0:01:24]}  Qb4 {[%clk 0:01:02]} 18. Bc4 {[%clk 0:01:22]}  Bxc4 {[%clk 0:00:54]} 19. Rxc4 {[%clk 0:01:23]}  Qa5 {[%clk 0:00:52]} 20. Qg4+ {[%clk 0:01:16]}  Qg5 {[%clk 0:00:47]} 21. Qc8+ {[%clk 0:01:08]}  Kg7 {[%clk 0:00:42]} 22. Nf3 {[%clk 0:01:01]}  Qa5+ {[%clk 0:00:40]} 23. Ke2 {[%clk 0:00:41]}  Qxa2+ {[%clk 0:00:32]} 24. Nd2 {[%clk 0:00:42]}  d3+ {[%clk 0:00:24]} 25. Ke3 {[%clk 0:00:40]}  Qa6 {[%clk 0:00:14]} 26. Qg4+ {[%clk 0:00:39]}  Kh6 {[%clk 0:00:13]} 27. Rb1 {[%clk 0:00:23]}  Nd7 {[%clk 0:00:10]} 28. Rc7 {[%clk 0:00:16]}  Raf8 {[%clk 0:00:08]} 29. Rxd7 {[%clk 0:00:14]}  Rxd7 {[%clk 0:00:05]} 30. Qxd7 {[%clk 0:00:15]}  Qa2 {[%clk 0:00:05]} 31. Rxb7 {[%clk 0:00:13]}  Qg8 {[%clk 0:00:05]} 32. Qh3+ {[%clk 0:00:12]}  Kg6 {[%clk 0:00:05]} 33. f4 {[%clk 0:00:12]}  Rf7 {[%clk 0:00:04]} 34. Qf5+ {[%clk 0:00:12]} 1-0


[Site "https://www.chess.com"]

[Event "Titled Tuesday Blitz July 20 2021"]
[White "Remizov, Yaroslav"]
[Black "Nilsen, Tobias Lang"]
[WhiteFideId "34134015"]
[BlackFideId "1521624"]
[WhiteElo "2335"]
[BlackElo "1975"]
[Result "1-0"]
[Round "02"]
[TimeControl "180+1"]
[Date "2021.07.21"]
[WhiteClock "0:00:44"]
[BlackClock "0:00:02"]

1. Nf3 {[%clk 0:03:00]}  d5 {[%clk 0:02:59]} 2. c4 {[%clk 0:03:00]}  d4 {[%clk 0:03:00]} 3. b4 {[%clk 0:02:59]}  g5 {[%clk 0:02:59]} 4. Qb3 {[%clk 0:02:55]}  g4 {[%clk 0:02:55]} 5. Nxd4 {[%clk 0:02:56]}  Bg7 {[%clk 0:02:52]} 6. e3 {[%clk 0:02:56]}  e5 {[%clk 0:02:39]} 7. Nc2 {[%clk 0:02:52]}  Nc6 {[%clk 0:02:37]} 8. Nc3 {[%clk 0:02:52]}  Nge7 {[%clk 0:02:36]} 9. Bb2 {[%clk 0:02:52]}  Bf5 {[%clk 0:02:34]} 10. O-O-O {[%clk 0:02:50]}  a5 {[%clk 0:02:32]} 11. b5 {[%clk 0:02:47]}  Nb4 {[%clk 0:02:30]} 12. Nxb4 {[%clk 0:02:44]}  axb4 {[%clk 0:02:31]} 13. Qxb4 {[%clk 0:02:45]}  O-O {[%clk 0:02:27]} 14. Be2 {[%clk 0:02:39]}  c6 {[%clk 0:02:23]} 15. e4 {[%clk 0:02:30]}  Be6 {[%clk 0:02:21]} 16. a4 {[%clk 0:02:30]}  cxb5 {[%clk 0:02:13]} 17. axb5 {[%clk 0:02:30]}  Ng6 {[%clk 0:02:08]} 18. g3 {[%clk 0:02:23]}  Re8 {[%clk 0:02:08]} 19. Kb1 {[%clk 0:02:21]}  Bf8 {[%clk 0:02:07]} 20. Qb3 {[%clk 0:02:20]}  Qa5 {[%clk 0:01:57]} 21. Nd5 {[%clk 0:02:16]}  Bxd5 {[%clk 0:01:47]} 22. exd5 {[%clk 0:02:15]}  Bc5 {[%clk 0:01:34]} 23. Bxg4 {[%clk 0:02:09]}  Bd4 {[%clk 0:01:26]} 24. Bf5 {[%clk 0:02:00]}  Ne7 {[%clk 0:01:20]} 25. Be4 {[%clk 0:01:56]}  f5 {[%clk 0:01:13]} 26. d6 {[%clk 0:01:56]}  fxe4 {[%clk 0:01:09]} 27. dxe7 {[%clk 0:01:49]}  Rxe7 {[%clk 0:01:06]} 28. Rhe1 {[%clk 0:01:48]}  b6 {[%clk 0:00:57]} 29. Rxe4 {[%clk 0:01:44]}  Rea7 {[%clk 0:00:48]} 30. c5+ {[%clk 0:01:44]}  Kf8 {[%clk 0:00:42]} 31. Bxd4 {[%clk 0:01:41]}  exd4 {[%clk 0:00:28]} 32. Rf4+ {[%clk 0:01:41]}  Kg7 {[%clk 0:00:26]} 33. Kc2 {[%clk 0:01:31]}  d3+ {[%clk 0:00:22]} 34. Kxd3 {[%clk 0:01:29]}  Rd7+ {[%clk 0:00:22]} 35. Ke2 {[%clk 0:01:29]}  Re8+ {[%clk 0:00:21]} 36. Kf1 {[%clk 0:01:28]}  Qa8 {[%clk 0:00:18]} 37. c6 {[%clk 0:01:26]}  h6 {[%clk 0:00:11]} 38. Rg4+ {[%clk 0:01:22]}  Kh8 {[%clk 0:00:11]} 39. Qc3+ {[%clk 0:01:22]}  Kh7 {[%clk 0:00:11]} 40. Qc2+ {[%clk 0:01:21]}  Kh8 {[%clk 0:00:11]} 41. Qg6 {[%clk 0:01:21]}  Rh7 {[%clk 0:00:08]} 42. Qf6+ {[%clk 0:01:21]}  Rg7 {[%clk 0:00:08]} 43. Rxg7 {[%clk 0:01:21]}  Re1+ {[%clk 0:00:05]} 44. Rxe1 {[%clk 0:01:21]}  Qc8 {[%clk 0:00:06]} 45. c7 {[%clk 0:01:15]}  h5 {[%clk 0:00:05]} 46. Rd7+ {[%clk 0:01:09]}  Kg8 {[%clk 0:00:05]} 47. Qg6+ {[%clk 0:01:09]}  Kh8 {[%clk 0:00:04]} 48. Re8+ {[%clk 0:01:05]}  Qxe8 {[%clk 0:00:04]} 49. Rd8 {[%clk 0:01:05]}  h4 {[%clk 0:00:02]} 50. c8=Q {[%clk 0:01:01]}  h3 {[%clk 0:00:02]} 51. Qf6+ {[%clk 0:01:00]}  Kg8 {[%clk 0:00:02]} 52. Qce6+ {[%clk 0:00:59]}  Kh7 {[%clk 0:00:02]} 53. Qef5+ {[%clk 0:00:58]}  Qg6 {[%clk 0:00:02]} 54. Qf7+ {[%clk 0:00:54]}  Kh6 {[%clk 0:00:02]} 55. Rh8+ {[%clk 0:00:54]}  Qh7 {[%clk 0:00:01]} 56. Qxh3+ {[%clk 0:00:46]}  Kg5 {[%clk 0:00:02]} 57. f4# {[%clk 0:00:44]} 1-0


[Site "https://www.chess.com"]

[Event "Titled Tuesday Blitz July 20 2021"]
[White "Rodriguez Hernandez, Luis Daniel"]
[Black "DieHardCuban"]
[WhiteFideId "3506770"]
[WhiteElo "2133"]
[BlackElo "2452"]
[Result "1-0"]
[Round "02"]
[TimeControl "180+1"]
[Date "2021.07.21"]
[WhiteClock "0:02:23"]
[BlackClock "0:01:30"]

1. e4 {[%clk 0:03:00]}  c6 {[%clk 0:02:59]} 2. d4 {[%clk 0:03:00]}  d5 {[%clk 0:02:59]} 3. Nc3 {[%clk 0:03:01]}  dxe4 {[%clk 0:02:58]} 4. Nxe4 {[%clk 0:03:02]}  Bf5 {[%clk 0:02:57]} 5. Ng3 {[%clk 0:03:02]}  Bg6 {[%clk 0:02:57]} 6. Nh3 {[%clk 0:03:03]}  h6 {[%clk 0:02:44]} 7. Nf4 {[%clk 0:03:03]}  Bh7 {[%clk 0:02:44]} 8. Bc4 {[%clk 0:03:03]}  Nf6 {[%clk 0:02:41]} 9. O-O {[%clk 0:03:03]}  e6 {[%clk 0:02:31]} 10. Re1 {[%clk 0:02:56]}  Bd6 {[%clk 0:02:27]} 11. Bxe6 {[%clk 0:02:55]}  O-O {[%clk 0:02:20]} 12. Bb3 {[%clk 0:02:52]}  Nbd7 {[%clk 0:02:08]} 13. c3 {[%clk 0:02:47]}  Qc7 {[%clk 0:02:02]} 14. Qf3 {[%clk 0:02:46]}  Rae8 {[%clk 0:01:58]} 15. Bd2 {[%clk 0:02:46]}  Qb6 {[%clk 0:01:44]} 16. Nfh5 {[%clk 0:02:32]}  Nxh5 {[%clk 0:01:30]} 17. Rxe8 {[%clk 0:02:23]} 1-0


[Site "https://www.chess.com"]

[Event "Titled Tuesday Blitz July 20 2021"]
[White "Rorrer, Grayson"]
[Black "Sinitsina, Anastassia"]
[WhiteFideId "30944996"]
[BlackFideId "4504640"]
[WhiteElo "2122"]
[BlackElo "2204"]
[Result "1-0"]
[Round "02"]
[TimeControl "180+1"]
[Date "2021.07.21"]
[WhiteClock "0:00:40"]
[BlackClock "0:00:10"]

1. e4 {[%clk 0:03:00]}  e5 {[%clk 0:02:58]} 2. Nc3 {[%clk 0:03:00]}  Nf6 {[%clk 0:02:58]} 3. d4 {[%clk 0:02:59]}  exd4 {[%clk 0:02:56]} 4. Qxd4 {[%clk 0:03:00]}  Nc6 {[%clk 0:02:56]} 5. Qd3 {[%clk 0:03:00]}  Bb4 {[%clk 0:02:46]} 6. Bd2 {[%clk 0:03:00]}  O-O {[%clk 0:02:46]} 7. O-O-O {[%clk 0:02:59]}  Re8 {[%clk 0:02:35]} 8. Nge2 {[%clk 0:02:58]}  Bf8 {[%clk 0:02:28]} 9. Bg5 {[%clk 0:02:54]}  h6 {[%clk 0:02:24]} 10. Bh4 {[%clk 0:02:53]}  Be7 {[%clk 0:02:24]} 11. f4 {[%clk 0:02:50]}  d6 {[%clk 0:02:21]} 12. h3 {[%clk 0:02:50]}  Nxe4 {[%clk 0:02:18]} 13. Bxe7 {[%clk 0:02:43]}  Qxe7 {[%clk 0:02:18]} 14. Nd5 {[%clk 0:02:43]}  Qd8 {[%clk 0:02:15]} 15. Qf3 {[%clk 0:02:39]}  Nf6 {[%clk 0:02:10]} 16. Nec3 {[%clk 0:02:39]}  Nxd5 {[%clk 0:02:10]} 17. Nxd5 {[%clk 0:02:40]}  Ne7 {[%clk 0:02:10]} 18. Nc3 {[%clk 0:02:32]}  Nc6 {[%clk 0:01:57]} 19. g4 {[%clk 0:02:30]}  Be6 {[%clk 0:01:48]} 20. Bb5 {[%clk 0:02:28]}  Bd7 {[%clk 0:01:43]} 21. Kb1 {[%clk 0:02:19]}  a6 {[%clk 0:01:42]} 22. Ba4 {[%clk 0:02:18]}  b5 {[%clk 0:01:42]} 23. Bb3 {[%clk 0:02:18]}  Na5 {[%clk 0:01:41]} 24. Bd5 {[%clk 0:02:15]}  c6 {[%clk 0:01:38]} 25. Be4 {[%clk 0:02:15]}  d5 {[%clk 0:01:37]} 26. Bd3 {[%clk 0:02:10]}  Nc4 {[%clk 0:01:36]} 27. h4 {[%clk 0:02:06]}  Ne3 {[%clk 0:01:22]} 28. Rdg1 {[%clk 0:01:59]}  Nxg4 {[%clk 0:01:09]} 29. Rxg4 {[%clk 0:01:58]}  Bxg4 {[%clk 0:01:10]} 30. Qxg4 {[%clk 0:01:59]}  Qf6 {[%clk 0:01:10]} 31. Rg1 {[%clk 0:01:54]}  b4 {[%clk 0:01:01]} 32. Ne2 {[%clk 0:01:53]}  c5 {[%clk 0:00:59]} 33. Ng3 {[%clk 0:01:52]}  Qe6 {[%clk 0:00:51]} 34. Qd1 {[%clk 0:01:35]}  Kh8 {[%clk 0:00:36]} 35. Nf5 {[%clk 0:01:30]}  Rg8 {[%clk 0:00:32]} 36. Re1 {[%clk 0:01:29]}  Qf6 {[%clk 0:00:31]} 37. Re5 {[%clk 0:01:29]}  Rad8 {[%clk 0:00:28]} 38. Qg4 {[%clk 0:01:20]}  Rge8 {[%clk 0:00:25]} 39. Qg3 {[%clk 0:01:17]}  Rxe5 {[%clk 0:00:23]} 40. fxe5 {[%clk 0:01:18]}  Qg6 {[%clk 0:00:24]} 41. Qxg6 {[%clk 0:01:13]}  fxg6 {[%clk 0:00:23]} 42. Ne7 {[%clk 0:01:11]}  g5 {[%clk 0:00:24]} 43. Ng6+ {[%clk 0:01:10]}  Kg8 {[%clk 0:00:23]} 44. hxg5 {[%clk 0:01:09]}  hxg5 {[%clk 0:00:23]} 45. e6 {[%clk 0:01:08]}  g4 {[%clk 0:00:22]} 46. Kc1 {[%clk 0:00:57]}  g3 {[%clk 0:00:22]} 47. Bf1 {[%clk 0:00:56]}  Rd6 {[%clk 0:00:19]} 48. e7 {[%clk 0:00:52]}  Kf7 {[%clk 0:00:19]} 49. Nh4 {[%clk 0:00:49]}  Rf6 {[%clk 0:00:18]} 50. Bg2 {[%clk 0:00:49]}  Kxe7 {[%clk 0:00:18]} 51. Bxd5 {[%clk 0:00:50]}  Rf1+ {[%clk 0:00:18]} 52. Kd2 {[%clk 0:00:50]}  Rf2+ {[%clk 0:00:19]} 53. Kd3 {[%clk 0:00:50]}  Rh2 {[%clk 0:00:18]} 54. Nf5+ {[%clk 0:00:49]}  Kf6 {[%clk 0:00:17]} 55. Ne3 {[%clk 0:00:50]}  Ke5 {[%clk 0:00:17]} 56. Be4 {[%clk 0:00:48]}  Kf4 {[%clk 0:00:16]} 57. Ng2+ {[%clk 0:00:46]}  Kg4 {[%clk 0:00:13]} 58. Ke3 {[%clk 0:00:44]}  Kg5 {[%clk 0:00:11]} 59. Kf3 {[%clk 0:00:43]}  Rh6 {[%clk 0:00:10]} 60. Kxg3 {[%clk 0:00:40]}  Rd6 {[%clk 0:00:11]} 61. Ne1 {[%clk 0:00:40]}  Rd2 {[%clk 0:00:10]} 62. Nf3+ {[%clk 0:00:40]} 1-0


[Site "https://www.chess.com"]

[Event "Titled Tuesday Blitz July 20 2021"]
[White "Sarana, Alexey"]
[Black "Trent, Lawrence"]
[WhiteFideId "24133795"]
[BlackFideId "408638"]
[WhiteElo "2646"]
[BlackElo "2474"]
[Result "1-0"]
[Round "02"]
[TimeControl "180+1"]
[Date "2021.07.20"]
[WhiteClock "0:00:35"]
[BlackClock "0:00:08"]

1. e4 {[%clk 0:03:00]}  c5 {[%clk 0:02:58]} 2. Nf3 {[%clk 0:03:01]}  Nc6 {[%clk 0:02:58]} 3. c3 {[%clk 0:03:00]}  Nf6 {[%clk 0:02:48]} 4. e5 {[%clk 0:02:59]}  Nd5 {[%clk 0:02:48]} 5. d4 {[%clk 0:02:59]}  cxd4 {[%clk 0:02:48]} 6. cxd4 {[%clk 0:03:00]}  d6 {[%clk 0:02:45]} 7. Bc4 {[%clk 0:02:59]}  Nb6 {[%clk 0:02:40]} 8. Bb5 {[%clk 0:02:59]}  dxe5 {[%clk 0:02:32]} 9. Nxe5 {[%clk 0:02:59]}  Bd7 {[%clk 0:02:26]} 10. Nxd7 {[%clk 0:02:59]}  Qxd7 {[%clk 0:02:26]} 11. O-O {[%clk 0:02:59]}  e6 {[%clk 0:02:24]} 12. Nc3 {[%clk 0:02:59]}  Be7 {[%clk 0:02:20]} 13. Qg4 {[%clk 0:02:47]}  O-O {[%clk 0:02:01]} 14. Bh6 {[%clk 0:02:45]}  Bf6 {[%clk 0:02:01]} 15. Rad1 {[%clk 0:02:33]}  Kh8 {[%clk 0:01:48]} 16. Ne4 {[%clk 0:02:31]}  Rg8 {[%clk 0:01:36]} 17. Nxf6 {[%clk 0:02:22]}  gxf6 {[%clk 0:01:36]} 18. Qh4 {[%clk 0:02:22]}  Nd5 {[%clk 0:01:28]} 19. Bd3 {[%clk 0:02:20]}  f5 {[%clk 0:01:25]} 20. h3 {[%clk 0:02:00]}  Rg6 {[%clk 0:01:24]} 21. g3 {[%clk 0:01:55]}  Rag8 {[%clk 0:01:16]} 22. Bc1 {[%clk 0:01:53]}  Qd6 {[%clk 0:01:01]} 23. Bc4 {[%clk 0:01:40]}  a6 {[%clk 0:00:51]} 24. a3 {[%clk 0:01:39]}  b5 {[%clk 0:00:50]} 25. Ba2 {[%clk 0:01:38]}  Qd8 {[%clk 0:00:30]} 26. Qh5 {[%clk 0:01:33]}  Qf6 {[%clk 0:00:28]} 27. Bxd5 {[%clk 0:01:26]}  exd5 {[%clk 0:00:27]} 28. Bf4 {[%clk 0:01:26]}  Nxd4 {[%clk 0:00:24]} 29. Rfe1 {[%clk 0:01:25]}  Nc6 {[%clk 0:00:19]} 30. Rxd5 {[%clk 0:01:24]}  Qxb2 {[%clk 0:00:15]} 31. Rxf5 {[%clk 0:01:21]}  f6 {[%clk 0:00:14]} 32. Rc5 {[%clk 0:01:17]}  Nd4 {[%clk 0:00:14]} 33. Rc7 {[%clk 0:01:14]}  R6g7 {[%clk 0:00:14]} 34. Rxg7 {[%clk 0:01:13]}  Rxg7 {[%clk 0:00:15]} 35. Re8+ {[%clk 0:00:45]}  Rg8 {[%clk 0:00:15]} 36. Be5 {[%clk 0:00:36]}  Qc1+ {[%clk 0:00:08]} 37. Kh2 {[%clk 0:00:35]} 1-0


[Site "https://www.chess.com"]

[Event "Titled Tuesday Blitz July 20 2021"]
[White "Seletsky, Grigory"]
[Black "Pert, Richard G"]
[WhiteFideId "14112191"]
[BlackFideId "404748"]
[WhiteElo "2492"]
[BlackElo "2441"]
[Result "1-0"]
[Round "02"]
[TimeControl "180+1"]
[Date "2021.07.21"]
[WhiteClock "0:00:33"]
[BlackClock "0:00:13"]

1. d4 {[%clk 0:02:59]}  Nf6 {[%clk 0:02:59]} 2. c3 {[%clk 0:02:59]}  d5 {[%clk 0:02:55]} 3. Bf4 {[%clk 0:02:58]}  e6 {[%clk 0:02:52]} 4. e3 {[%clk 0:02:58]}  Bd6 {[%clk 0:02:53]} 5. Nd2 {[%clk 0:02:55]}  O-O {[%clk 0:02:52]} 6. Bg3 {[%clk 0:02:55]}  b6 {[%clk 0:02:48]} 7. Ngf3 {[%clk 0:02:48]}  c5 {[%clk 0:02:48]} 8. Bd3 {[%clk 0:02:47]}  Ba6 {[%clk 0:02:48]} 9. Bxa6 {[%clk 0:02:44]}  Nxa6 {[%clk 0:02:49]} 10. Bxd6 {[%clk 0:02:41]}  Qxd6 {[%clk 0:02:48]} 11. O-O {[%clk 0:02:41]}  Nb8 {[%clk 0:02:41]} 12. Ne5 {[%clk 0:02:41]}  Nc6 {[%clk 0:02:40]} 13. Nxc6 {[%clk 0:02:39]}  Qxc6 {[%clk 0:02:39]} 14. Re1 {[%clk 0:02:38]}  h6 {[%clk 0:02:32]} 15. a4 {[%clk 0:02:33]}  a6 {[%clk 0:02:16]} 16. a5 {[%clk 0:02:23]}  b5 {[%clk 0:02:14]} 17. dxc5 {[%clk 0:02:19]}  Qxc5 {[%clk 0:02:14]} 18. Nb3 {[%clk 0:02:12]}  Qc7 {[%clk 0:02:11]} 19. Nd4 {[%clk 0:02:08]}  Rac8 {[%clk 0:02:00]} 20. h3 {[%clk 0:02:05]}  g6 {[%clk 0:01:51]} 21. Nc2 {[%clk 0:01:55]}  Kg7 {[%clk 0:01:51]} 22. Nb4 {[%clk 0:01:55]}  Qd6 {[%clk 0:01:48]} 23. e4 {[%clk 0:01:50]}  Qf4 {[%clk 0:01:32]} 24. exd5 {[%clk 0:01:47]}  exd5 {[%clk 0:01:22]} 25. Nxa6 {[%clk 0:01:45]}  Ne4 {[%clk 0:01:20]} 26. Qd4+ {[%clk 0:01:31]}  Qf6 {[%clk 0:01:19]} 27. Qxf6+ {[%clk 0:01:28]}  Kxf6 {[%clk 0:01:20]} 28. Nb4 {[%clk 0:01:28]}  Rfd8 {[%clk 0:01:16]} 29. Nxd5+ {[%clk 0:01:26]}  Rxd5 {[%clk 0:01:15]} 30. Rxe4 {[%clk 0:01:26]}  Ra8 {[%clk 0:01:10]} 31. a6 {[%clk 0:01:25]}  Rd6 {[%clk 0:01:08]} 32. a7 {[%clk 0:01:24]}  Rd7 {[%clk 0:01:08]} 33. Rb4 {[%clk 0:01:24]}  Raxa7 {[%clk 0:01:06]} 34. Rxa7 {[%clk 0:01:23]}  Rxa7 {[%clk 0:01:07]} 35. Rxb5 {[%clk 0:01:23]}  Ra1+ {[%clk 0:01:07]} 36. Kh2 {[%clk 0:01:22]}  h5 {[%clk 0:01:08]} 37. h4 {[%clk 0:01:22]}  Rd1 {[%clk 0:01:01]} 38. g3 {[%clk 0:01:21]}  Rd2 {[%clk 0:00:56]} 39. Kg2 {[%clk 0:01:21]}  Rc2 {[%clk 0:00:56]} 40. Rb4 {[%clk 0:01:18]}  Kf5 {[%clk 0:00:56]} 41. Rf4+ {[%clk 0:00:58]}  Ke6 {[%clk 0:00:54]} 42. Rb4 {[%clk 0:00:58]}  Kf5 {[%clk 0:00:55]} 43. Kf3 {[%clk 0:00:58]}  f6 {[%clk 0:00:53]} 44. Rb5+ {[%clk 0:00:56]}  Ke6 {[%clk 0:00:53]} 45. Rb4 {[%clk 0:00:56]}  Kf5 {[%clk 0:00:53]} 46. c4 {[%clk 0:00:55]}  g5 {[%clk 0:00:52]} 47. Rb5+ {[%clk 0:00:53]}  Kg6 {[%clk 0:00:52]} 48. b3 {[%clk 0:00:52]}  Rc3+ {[%clk 0:00:41]} 49. Kg2 {[%clk 0:00:52]}  g4 {[%clk 0:00:33]} 50. c5 {[%clk 0:00:51]}  Kf5 {[%clk 0:00:31]} 51. b4 {[%clk 0:00:50]}  Ke4 {[%clk 0:00:28]} 52. Rb6 {[%clk 0:00:50]}  f5 {[%clk 0:00:24]} 53. Rh6 {[%clk 0:00:41]}  Rb3 {[%clk 0:00:21]} 54. Rxh5 {[%clk 0:00:40]}  Rxb4 {[%clk 0:00:21]} 55. Rh8 {[%clk 0:00:38]}  Rc4 {[%clk 0:00:12]} 56. Rc8 {[%clk 0:00:37]}  Rc2 {[%clk 0:00:11]} 57. c6 {[%clk 0:00:37]}  f4 {[%clk 0:00:11]} 58. gxf4 {[%clk 0:00:36]}  Kxf4 {[%clk 0:00:12]} 59. c7 {[%clk 0:00:35]}  g3 {[%clk 0:00:13]} 60. Rf8+ {[%clk 0:00:35]}  Kg4 {[%clk 0:00:11]} 61. c8=Q+ {[%clk 0:00:34]}  Rxc8 {[%clk 0:00:11]} 62. Rxc8 {[%clk 0:00:34]}  gxf2 {[%clk 0:00:12]} 63. Kxf2 {[%clk 0:00:34]}  Kh3 {[%clk 0:00:13]} 64. Rg8 {[%clk 0:00:33]} 1-0


[Site "https://www.chess.com"]

[Event "Titled Tuesday Blitz July 20 2021"]
[White "Taichman, Ori"]
[Black "Timofeev, Artyom"]
[WhiteFideId "2804069"]
[BlackFideId "4140419"]
[WhiteElo "2227"]
[BlackElo "2582"]
[Result "1/2-1/2"]
[Round "02"]
[TimeControl "180+1"]
[Date "2021.07.20"]
[WhiteClock "0:00:16"]
[BlackClock "0:00:10"]

1. e4 {[%clk 0:02:58]}  e6 {[%clk 0:02:59]} 2. d4 {[%clk 0:02:58]}  d5 {[%clk 0:02:59]} 3. Nc3 {[%clk 0:02:58]}  dxe4 {[%clk 0:02:58]} 4. Nxe4 {[%clk 0:02:59]}  Nd7 {[%clk 0:02:58]} 5. Nf3 {[%clk 0:02:59]}  Ngf6 {[%clk 0:02:58]} 6. Nxf6+ {[%clk 0:03:00]}  Nxf6 {[%clk 0:02:58]} 7. Bd3 {[%clk 0:03:01]}  c5 {[%clk 0:02:57]} 8. dxc5 {[%clk 0:03:01]}  Bxc5 {[%clk 0:02:57]} 9. Bg5 {[%clk 0:02:59]}  Qa5+ {[%clk 0:02:48]} 10. Bd2 {[%clk 0:02:59]}  Qb6 {[%clk 0:02:47]} 11. O-O {[%clk 0:02:58]}  O-O {[%clk 0:02:44]} 12. b4 {[%clk 0:02:53]}  Be7 {[%clk 0:02:41]} 13. c4 {[%clk 0:02:48]}  Rd8 {[%clk 0:02:39]} 14. c5 {[%clk 0:02:45]}  Qc7 {[%clk 0:02:39]} 15. Qe2 {[%clk 0:02:25]}  b6 {[%clk 0:02:35]} 16. cxb6 {[%clk 0:02:13]}  Qxb6 {[%clk 0:02:32]} 17. a3 {[%clk 0:01:59]}  Bb7 {[%clk 0:02:30]} 18. Rad1 {[%clk 0:01:49]}  h6 {[%clk 0:02:17]} 19. Ne5 {[%clk 0:01:43]}  Qc7 {[%clk 0:01:51]} 20. Rfe1 {[%clk 0:01:31]}  Bd5 {[%clk 0:01:49]} 21. Rc1 {[%clk 0:01:19]}  Qd6 {[%clk 0:01:39]} 22. Bf4 {[%clk 0:01:18]}  Qb6 {[%clk 0:01:34]} 23. Nc4 {[%clk 0:00:20]}  Bxc4 {[%clk 0:01:22]} 24. Bxc4 {[%clk 0:00:21]}  Nd5 {[%clk 0:01:22]} 25. Bxd5 {[%clk 0:00:20]}  Rxd5 {[%clk 0:01:22]} 26. Bc7 {[%clk 0:00:20]}  Qb7 {[%clk 0:01:20]} 27. Qf3 {[%clk 0:00:19]}  Rc8 {[%clk 0:01:14]} 28. Bf4 {[%clk 0:00:19]}  Bf6 {[%clk 0:00:49]} 29. Rxc8+ {[%clk 0:00:18]}  Qxc8 {[%clk 0:00:49]} 30. Rc1 {[%clk 0:00:19]}  Qd8 {[%clk 0:00:50]} 31. h3 {[%clk 0:00:18]}  h5 {[%clk 0:00:43]} 32. Be3 {[%clk 0:00:17]}  a6 {[%clk 0:00:40]} 33. Rc5 {[%clk 0:00:17]}  Rd1+ {[%clk 0:00:38]} 34. Kh2 {[%clk 0:00:17]}  g6 {[%clk 0:00:34]} 35. Qb7 {[%clk 0:00:17]}  Qd6+ {[%clk 0:00:33]} 36. g3 {[%clk 0:00:16]}  h4 {[%clk 0:00:25]} 37. Rc8+ {[%clk 0:00:10]}  Kg7 {[%clk 0:00:22]} 38. Rc7 {[%clk 0:00:10]}  hxg3+ {[%clk 0:00:21]} 39. fxg3 {[%clk 0:00:10]}  Rd2+ {[%clk 0:00:15]} 40. Bxd2 {[%clk 0:00:10]}  Qxd2+ {[%clk 0:00:16]} 41. Qg2 {[%clk 0:00:11]}  Qe3 {[%clk 0:00:16]} 42. a4 {[%clk 0:00:07]}  Qb6 {[%clk 0:00:16]} 43. Rc4 {[%clk 0:00:07]}  Qd6 {[%clk 0:00:13]} 44. Re4 {[%clk 0:00:07]}  Qd3 {[%clk 0:00:12]} 45. h4 {[%clk 0:00:07]}  Qb3 {[%clk 0:00:11]} 46. b5 {[%clk 0:00:07]}  axb5 {[%clk 0:00:11]} 47. axb5 {[%clk 0:00:08]}  Qxb5 {[%clk 0:00:11]} 48. Qf3 {[%clk 0:00:09]}  Qd5 {[%clk 0:00:11]} 49. Kg2 {[%clk 0:00:08]}  Qd2+ {[%clk 0:00:11]} 50. Re2 {[%clk 0:00:09]}  Qd4 {[%clk 0:00:10]} 51. h5 {[%clk 0:00:10]}  gxh5 {[%clk 0:00:10]} 52. Qxh5 {[%clk 0:00:10]}  Qd5+ {[%clk 0:00:10]} 53. Qf3 {[%clk 0:00:11]}  Qxf3+ {[%clk 0:00:10]} 54. Kxf3 {[%clk 0:00:12]}  Kg6 {[%clk 0:00:10]} 55. Re4 {[%clk 0:00:12]}  Bg5 {[%clk 0:00:10]} 56. g4 {[%clk 0:00:11]}  Bf6 {[%clk 0:00:10]} 57. Kf4 {[%clk 0:00:11]}  Bg5+ {[%clk 0:00:10]} 58. Kf3 {[%clk 0:00:12]}  Bf6 {[%clk 0:00:10]} 59. Ra4 {[%clk 0:00:12]}  Be5 {[%clk 0:00:09]} 60. Ke4 {[%clk 0:00:12]}  Bg3 {[%clk 0:00:09]} 61. Ra5 {[%clk 0:00:12]}  Bd6 {[%clk 0:00:09]} 62. Rb5 {[%clk 0:00:13]}  Bg3 {[%clk 0:00:09]} 63. Kf3 {[%clk 0:00:13]}  Bd6 {[%clk 0:00:09]} 64. Rb3 {[%clk 0:00:14]}  Be5 {[%clk 0:00:09]} 65. Rb5 {[%clk 0:00:14]}  Bd6 {[%clk 0:00:09]} 66. Rb3 {[%clk 0:00:15]}  Be5 {[%clk 0:00:10]} 67. Rb5 {[%clk 0:00:16]}  Bd6 {[%clk 0:00:10]} 1/2-1/2


[Site "https://www.chess.com"]